Cogmind - Beta 10.2 @@@ ROGUE MODE // 2021.11.16 @ 18:57:42 Player: Man Suit Result: Self-destructed Performance ------------- Evolutions (2) 1000 Regions Visited (6) 1200 Robots Destroyed (48) 240 Value Destroyed (1831) 1831 Prototype IDs (23) 460 Alien Tech Used (0) 0 Bonus (1103) 1103 TOTAL SCORE: 5834 Bonus ------- High Alert Combat Kills 103 Entered Garrisons 200 Used RIF Installer 500 Aligned with FarCom 300 Cogmind --------- Core Integrity 507/550 Matter 300/300 Energy 240/240 System Corruption 0% Temperature Cool (0) Movement Rolling (120) Ox3 Location -8/Garrison Parts ------- > --- POWER (1) -------- Nuclear Core > --- PROPULSION (2) --- Wheel Compact Wheel > --- UTILITY (4) ------ Humpback Advanced Targeting Computer Improved Weapon Shielding > --- WEAPON (4) ------- XL Autogun Array > --- INVENTORY (24) --- Light Nuclear Core Light Nuclear Core Improved Heat Sink Humpback Humpback High-capacity Matter Pod (34) Improved Terrain Scan Processor Improved Utility Shielding Hardened Light Armor Plating Hardened Light Armor Plating Hardened Light Armor Plating Relay Coupler [NC] (22) Relay Coupler [NC] (22) Relay Coupler [Swarmer] (42) Relay Coupler [Swarmer] (29) Relay Coupler [Duelist] (22) Relay Coupler [Duelist] (28) Relay Coupler [Sentry] (17) Relay Coupler [Specialist] (22) Relay Coupler [Behemoth] (9) Improved Grenade Launcher Katana Peak State ------------ > --- POWER ------------ Nuclear Core > --- PROPULSION ------- Wheel Compact Wheel > --- UTILITY ---------- Humpback Advanced Targeting Computer Improved Weapon Shielding > --- WEAPON ----------- XL Autogun Array > --- INVENTORY -------- Light Nuclear Core Light Nuclear Core Improved Heat Sink Humpback Humpback High-capacity Matter Pod Improved Terrain Scan Processor Improved Utility Shielding Hardened Light Armor Plating Hardened Light Armor Plating Hardened Light Armor Plating Relay Coupler [NC] Relay Coupler [NC] Relay Coupler [Swarmer] Relay Coupler [Swarmer] Relay Coupler [Duelist] Relay Coupler [Duelist] Relay Coupler [Sentry] Relay Coupler [Specialist] Relay Coupler [Behemoth] Improved Grenade Launcher Katana [Rating: 55] Favorites ----------- Power Light Nuclear Core Engine Ion Engine Power Core Light Nuclear Core Propulsion Wheel Leg Aluminum Leg Wheel Wheel Utility Humpback Device Improved Heat Sink Storage Humpback Processor Advanced Targeting Computer Protection Improved Weapon Shielding Weapon Light Cannon Energy Gun EM Pulse Gun Ballistic Gun XL Autogun Array Ballistic Cannon Light Cannon Launcher Improved Grenade Launcher Slashing Weapon Katana Build | -11 -10 -10 -10 -9 -8 -8 ------- Run | Scr Mat Min Exi Min Mat Gar Slots Evolved 4 | . . . . . 4 . Power . | . . . . . . . Propulsion . | . . . . . . . Utility 2 | . . . . . 2 . Weapon 2 | . . . . . 2 . Parts Attached 38 | 6 5 3 6 . 12 6 Power 5 | 1 1 . 1 . 2 . Engine 2 | 1 1 . . . . . Core 3 | . . . 1 . 2 . Reactor . | . . . . . . . Propulsion 8 | 2 1 1 2 . 1 1 Treads . | . . . . . . . Leg 4 | 2 1 1 . . . . Wheel 4 | . . . 2 . 1 1 Hover . | . . . . . . . Flight . | . . . . . . . Utility 14 | 1 1 1 3 . 8 . Device 3 | . 1 1 . . 1 . Storage 5 | 1 . . 3 . 1 . Processor 3 | . . . . . 3 . Hackware . | . . . . . . . Protection 3 | . . . . . 3 . Artifact . | . . . . . . . Weapon 11 | 2 2 1 . . 1 5 Energy Gun 2 | 2 . . . . . . Energy Cannon . | . . . . . . . Ballistic Gun 4 | . 1 . . . 1 2 Ballistic Cannon 2 | . 1 1 . . . . Launcher 2 | . . . . . . 2 Special Weapon . | . . . . . . . Impact Weapon . | . . . . . . . Slashing Weapon 1 | . . . . . . 1 Piercing Weapon . | . . . . . . . Special Melee Weapon . | . . . . . . . Unidentified Prototypes . | . . . . . . . Parts Lost 1 | . . 1 . . . . Power . | . . . . . . . Propulsion . | . . . . . . . Utility . | . . . . . . . Weapon 1 | . . 1 . . . . Highest Loss Streak 1 | . . 1 . . . . Average Slot Usage (%) 76 | . 97 99 98 85 62 63 Engine 2 | . 14 14 . . . . Core 8 | . . . 14 14 9 9 Leg 8 | . 28 28 20 . . . Wheel 13 | . . . 7 28 18 18 Device 4 | . 11 14 10 . . . Storage 11 | . 14 14 16 14 9 9 Processor 4 | . . . . . 7 9 Protection 5 | . . . . . 9 9 Energy Gun 2 | . 17 8 . . . . Ballistic Gun 5 | . 8 . . . 8 7 Ballistic Cannon 8 | . 2 18 28 28 . . Naked Turns . | . . . . . . . Heaviest Build 107 | 13 15 16 91 91 107 104 Greatest Support 26 | 20 20 20 26 26 26 26 Greatest Overweight (x) 5 | 4 . . 3 3 5 5 Average Overweight (x) 2 | . . . . 3 4 4 Largest Inventory Capacity 44 | 6 6 6 24 24 44 24 Average Capacity 17 | 5 6 6 9 24 24 24 Most Carried 24 | 6 6 6 12 12 19 24 Average Carried 12 | 3 5 5 6 12 15 23 Final Capacity 24 | 6 6 6 24 24 24 24 Final Carried 24 | 6 6 6 12 12 19 24 Class Distribution -------------------- 48% | Hauler-Skirmisher 36% | Mutant 9% | Hauler-Mutant 6% | Hauler-Tank Dominant Class ---------------- Mutant | -10/Materials Mutant | -10/Mines Mutant | -10/Exiles Hauler-Mutant | -9/Mines Hauler-Skirmisher | -8/Materials Hauler-Skirmisher | -8/Garrison Resources | -11 -10 -10 -10 -9 -8 -8 ----------- Run | Scr Mat Min Exi Min Mat Gar Matter Collected 1656 | 229 94 92 44 . 825 372 Remotely . | . . . . . . . Salvage Created 1715 | . 342 142 . . 996 235 Parts 93 | . 21 7 . . 51 14 Haulers Intercepted 2 | . 1 . . . 1 . Recyclers Shooed . | . . . . . . . Parts Field Recycled . | . . . . . . . Retrieved Matter . | . . . . . . . Parts Self-Destructed . | . . . . . . . Prevented . | . . . . . . . Kills | -11 -10 -10 -10 -9 -8 -8 ------- Run | Scr Mat Min Exi Min Mat Gar Combat Hostiles Destroyed 42 | . 10 5 . . 17 10 Guns 29 | . 7 1 . . 17 4 Cannons 3 | . . 3 . . . . AOE 10 | . 3 1 . . . 6 Classes Destroyed 8 | . 4 1 . . 3 . Worker 2 | . 1 . . . 1 . Builder 1 | . . . . . 1 . Hauler 2 | . 1 . . . 1 . Recycler 1 | . . 1 . . . . Swarmer 15 | . 6 3 . . . 6 Grunt 19 | . 4 2 . . 11 2 Sentry 6 | . . . . . 4 2 Hunter 2 | . . . . . 2 . Best Kill Streak 5 | . 4 4 . . 5 3 Combat Bots Only 5 | . 3 3 . . 5 3 Max Kills in Single Turn 3 | . 3 1 . . 2 2 Gunslinging 1 | . 1 . . . . . Exploded 3 | . 3 1 . . . 2 Melee . | . . . . . . . Uniques/NPCs Destroyed . | . . . . . . . Combat | -11 -10 -10 -10 -9 -8 -8 -------- Run | Scr Mat Min Exi Min Mat Gar Damage Taken 730 | . 182 243 . . 180 125 Core 96 | . 36 17 . . 43 . Absorbed by Shields . | . . . . . . . Core Remaining (%) 89 | 100 . . . 78 . . Volleys Fired 92 | . 22 16 . . 32 22 Largest 2 | . 2 2 . . 1 1 Hottest 90 | . 90 75 . . 60 60 Shots Fired 130 | . 44 32 . . 32 22 Gun 96 | . 44 7 . . 32 13 Cannon 25 | . . 25 . . . . Launcher 9 | . . . . . . 9 Special . | . . . . . . . Kinetic 83 | . 13 25 . . 32 13 Thermal 9 | . 9 . . . . . Explosive 9 | . . . . . . 9 Electromagnetic 29 | . 22 7 . . . . Robot Hit Streak 11 | . 11 6 . . 9 8 Robot Miss Streak 6 | . 2 2 . . 4 6 Penetration Max . | . . . . . . . Secondary Targets 2 | . 2 . . . . . Max Gunslinging Chain 1 | . 1 . . . . . Shots Hit Robots 91 | . 29 19 . . 31 12 Core Hits 71 | . 17 7 . . 33 14 Critical Hits 1 | . . 1 . . . . Critical Kills . | . . . . . . . Critical Parts Destroyed 1 | . . 1 . . . . Melee Attacks 1 | . . . . . . 1 Impact . | . . . . . . . Slashing 1 | . . . . . . 1 Piercing . | . . . . . . . Sneak Attacks . | . . . . . . . Combat Hostiles . | . . . . . . . Follow-up Attacks . | . . . . . . . Damage Inflicted 3574 | . 460 318 . . 1635 1161 Guns 2551 | . 315 70 . . 1635 531 Cannons 205 | . . 205 . . . . Explosions 818 | . 145 43 . . . 630 Melee . | . . . . . . . Ramming . | . . . . . . . Kinetic 2423 | . 52 205 . . 1635 531 Thermal 265 | . 222 43 . . . . Explosive 630 | . . . . . . 630 Electromagnetic 256 | . 186 70 . . . . Impact . | . . . . . . . Slashing . | . . . . . . . Piercing . | . . . . . . . Highest Corruption . | . . . . . . . Average Corruption . | . . . . . . . Corruption Purged . | . . . . . . . Overload Shots . | . . . . . . . Overflow Damage 7 | . . . . . . 7 Projectiles . | . . . . . . . Explosions 7 | . . . . . . 7 Melee . | . . . . . . . Knockbacks 2 | . . 2 . . . . Impact . | . . . . . . . Kinetic 2 | . . 2 . . . . Secondary . | . . . . . . . Self-Inflicted Damage 53 | . . . . . . 53 Shots 1 | . . . . . . 1 Rammed . | . . . . . . . Targets Rammed . | . . . . . . . Kicked . | . . . . . . . Crushed . | . . . . . . . Highest Temperature 205 | . 132 4 . . 205 189 Average Temperature 58 | . 43 4 . . 66 67 Received Heat Transfer 156 | . 63 48 . . 36 9 Siege Activations . | . . . . . . . Robots Corrupted . | . . . . . . . Combat Hostiles . | . . . . . . . Parts Fried 1 | . 1 . . . . . Impact Corruptions . | . . . . . . . Robots Melted . | . . . . . . . Combat Hostiles . | . . . . . . . Parts Melted . | . . . . . . . Heat Transferred 422 | . 372 50 . . . . Parts Sabotaged . | . . . . . . . Parts Stolen . | . . . . . . . Parts Stripped . | . . . . . . . Power Chain Reactions 3 | . 2 1 . . . . Missiles Intercepted . | . . . . . . . Alert | -11 -10 -10 -10 -9 -8 -8 ------- Run | Scr Mat Min Exi Min Mat Gar Peak Influence 672 | . 289 242 . . 542 672 Initial 200 | . . 112 . . . 200 Average 231 | . 176 180 . . 219 458 Maximum Alert Level 2 | . 1 1 . . 2 2 Low Security (%) 45 | 100 68 67 . 100 41 . Level 1 35 | . 31 32 . . 41 41 Level 2 18 | . . . . . 16 58 Level 3 . | . . . . . . . Level 4 . | . . . . . . . Level 5 . | . . . . . . . High Security . | . . . . . . . Max Security . | . . . . . . . Squads Dispatched 7 | . 2 . . . 5 . Investigation 3 | . 2 . . . 1 . Extermination . | . . . . . . . Reinforcement 4 | . . . . . 4 . Assault . | . . . . . . . Garrison . | . . . . . . . Intercept . | . . . . . . . Construction Impeded . | . . . . . . . Haulers Reinforced . | . . . . . . . Stealth | -11 -10 -10 -10 -9 -8 -8 --------- Run | Scr Mat Min Exi Min Mat Gar Distress Signals 2 | . . . . . 2 . Communications Jammed . | . . . . . . . Distress Signals . | . . . . . . . Times Spotted 58 | . 12 6 . . 31 9 Peak Tracking Total 6 | . 5 3 . . 6 2 Tactical Retreats 4 | . . 1 . . 2 1 Traps | -11 -10 -10 -10 -9 -8 -8 ------- Run | Scr Mat Min Exi Min Mat Gar Traps Triggered 4 | . 1 . . . 1 2 Indirectly . | . . . . . . . Trap Hack Attempts . | . . . . . . . Triggered . | . . . . . . . Disarmed . | . . . . . . . Reprogrammed . | . . . . . . . Reused . | . . . . . . . Traps Extracted . | . . . . . . . Installed . | . . . . . . . Triggered . | . . . . . . . Machines | -11 -10 -10 -10 -9 -8 -8 ---------- Run | Scr Mat Min Exi Min Mat Gar Machines Disabled 6 | . 1 . . . 2 3 Max in Single Turn 1 | . 1 . . . 1 1 Garrison Relay 2 | . . . . . . 2 Machines Sabotaged . | . . . . . . . Garrisons Compromised . | . . . . . . . Overloaded Fab Kills . | . . . . . . . Fab Network Shutdowns . | . . . . . . . Hacking | -11 -10 -10 -10 -9 -8 -8 --------- Run | Scr Mat Min Exi Min Mat Gar Machines Accessed 11 | . 1 . 5 . 5 . Terminals 5 | . 1 . . . 4 . Fabricators . | . . . . . . . Repair Stations . | . . . . . . . Recycling Units . | . . . . . . . Scanalyzers . | . . . . . . . Garrison Access 1 | . . . . . 1 . Total Hacks 67 | . 4 . 50 . 13 . Successful 59 | . 1 . 50 . 8 . Failed 8 | . 3 . . . 5 . Catastrophic 1 | . . . . . 1 . Database Lockouts . | . . . . . . . Manual 13 | . 4 . 1 . 8 . Terminals 16 | . 4 . . . 12 . Fabricators . | . . . . . . . Repair Stations . | . . . . . . . Recycling Units . | . . . . . . . Scanalyzers . | . . . . . . . Garrison Access 1 | . . . . . 1 . Terminal Hacks 57 | . 1 . 50 . 6 . Record 49 | . . . 49 . . . Part Schematic 3 | . 1 . . . 2 . Alert Level 2 | . . . . . 2 . Unreport Threat 1 | . . . . . 1 . Locate Traps 1 | . . . . . 1 . EX-Prototype ID Bank 1 | . . . 1 . . . Fabricator Hacks . | . . . . . . . Repair Station Hacks . | . . . . . . . Recycling Unit Hacks . | . . . . . . . Scanalyzer . | . . . . . . . Garrison Access Hacks 1 | . . . . . 1 . Unlock Access 1 | . . . . . 1 . Unauthorized Hacks 1 | . . . . . 1 . Terminals 1 | . . . . . 1 . Botnet 1 | . . . . . 1 . Fabricators . | . . . . . . . Repair Stations . | . . . . . . . Recycling Units . | . . . . . . . Scanalyzers . | . . . . . . . Garrison Access . | . . . . . . . Data Cores Recovered . | . . . . . . . Used . | . . . . . . . Hacking Detections 6 | . 1 . . . 5 . Full Trace Events 1 | . 1 . . . . . Feedback Events . | . . . . . . . Feedback Blocked . | . . . . . . . Robot Schematics Acquired . | . . . . . . . Robots Built . | . . . . . . . Matter . | . . . . . . . Time . | . . . . . . . Total Robot Build Rating . | . . . . . . . Part Schematics Acquired 3 | . 1 . . . 2 . Parts Built . | . . . . . . . Matter . | . . . . . . . Time . | . . . . . . . Total Part Build Rating . | . . . . . . . Parts Repaired . | . . . . . . . Time . | . . . . . . . Parts Recycled . | . . . . . . . Recycled Matter . | . . . . . . . Retrieved Matter . | . . . . . . . Retrieved Components . | . . . . . . . Parts Scanalyzed . | . . . . . . . Part Schematics Acquired . | . . . . . . . Parts Damaged . | . . . . . . . Bothacking | -11 -10 -10 -10 -9 -8 -8 ------------ Run | Scr Mat Min Exi Min Mat Gar Used RIF Installer 1 | . . . . . . 1 Robots Hacked . | . . . . . . . Non-combat . | . . . . . . . Combat . | . . . . . . . Robot Hacks Applied . | . . . . . . . Relay Couplers Released 9 | . . . . . . 9 Machine Destruction 9 | . . . . . . 9 Robots Rewired . | . . . . . . . Allies Hacked . | . . . . . . . Hacks Repelled . | . . . . . . . Allies | -11 -10 -10 -10 -9 -8 -8 -------- Run | Scr Mat Min Exi Min Mat Gar Total Allies . | . . . . . . . Largest Group . | . . . . . . . Highest-Rated Group . | . . . . . . . Highest-Rated Ally . | . . . . . . . Total Orders . | . . . . . . . Ally Attacks . | . . . . . . . Total Damage . | . . . . . . . Kills . | . . . . . . . Allies Corrupted . | . . . . . . . Allies Melted . | . . . . . . . Intel | -11 -10 -10 -10 -9 -8 -8 ------- Run | Scr Mat Min Exi Min Mat Gar Robot Analysis Total . | . . . . . . . Derelict Logs Recovered . | . . . . . . . Drone Launches . | . . . . . . . Drone Recoveries . | . . . . . . . Exploration | -11 -10 -10 -10 -9 -8 -8 ------------- Run | Scr Mat Min Exi Min Mat Gar Turns Passed 3278 | 86 341 225 604 192 1345 485 Spaces Moved 2183 | 61 217 128 494 151 831 301 Core 33 | 33 . . . . . . Treads . | . . . . . . . Legs 739 | 28 217 128 366 . . . Wheels 1411 | . . . 128 151 831 301 Hover . | . . . . . . . Flight . | . . . . . . . Fastest Speed 50 | 50 120 120 110 120 120 120 Average Speed 124 | 115 120 120 118 120 129 127 Slowest Speed 250 | 250 120 120 120 120 130 130 Overloaded Moves . | . . . . . . . Propulsion Burnouts . | . . . . . . . Robots Hopped . | . . . . . . . Cave-ins Triggered . | . . . . . . . Exploration Rate (%) 45 | 4 50 34 93 36 65 39 Regions Visited 6 Branch Regions 3 Pre-discovered Areas 1 | . . . 1 . . . Known Exits Taken 1 | . . . . . 1 . Unknown Exits Taken 5 | 1 1 1 1 1 . . Scrap Searched . | . . . . . . . Spaces Dug 2 | . . . . . 2 . Terrain Destroyed 71 | . 3 6 . . 21 41 Melee . | . . . . . . . Projectile 21 | . . . . . 21 . AOE 50 | . 3 6 . . . 41 Terrain Rammed . | . . . . . . . Walls Destroyed . | . . . . . . . Machines Disabled . | . . . . . . . Actions | -11 -10 -10 -10 -9 -8 -8 --------- Run | Scr Mat Min Exi Min Mat Gar Total 2670 | 74 258 167 514 162 1101 394 Wait 268 | . 4 20 . 12 204 28 Move 2178 | 60 216 127 493 150 831 301 Hop . | . . . . . . . Pick Up 44 | 8 4 . 9 . 12 11 Fast Attach 10 | 4 2 . 1 . 2 1 Attach 10 | 2 . 1 1 . 3 3 Detach 7 | . . . 1 . 4 2 Swap 18 | . 3 2 4 . 7 2 Drop 26 | . 7 1 5 . 6 7 Fire 92 | . 22 16 . . 32 22 Melee 1 | . . . . . . 1 Ram . | . . . . . . . Kick . | . . . . . . . Crush . | . . . . . . . Escape Stasis 16 | . . . . . . 16 Rewire . | . . . . . . . Trap . | . . . . . . . Miscellaneous . | . . . . . . . Route ------- -11/Scrapyard -10/Materials (discovered 2 exits: [*Min x2]) -10/Mines -10/Exiles (discovered 2 exits: [*Min x2]) -9/Mines -8/Materials (discovered 3 exits: [*Fac x2] / Gar) -8/Garrison (discovered 1 exit: [*Fac]) History --------- Turn | Location | Event 3 | -11/Scrapyard | Discovered new exit (range 15) 87 | -11/Scrapyard | Entered Materials 239 | -10/Materials | Discovered new exit (range 14) 309 | -10/Materials | Build established: Mutant 336 | -10/Materials | Discovered new exit (range 6) 428 | -10/Materials | Entered Mines 647 | -10/Mines | Deemed a non-threat by the Exiles lab entrance 648 | -10/Mines | Discovered new exit (range 5) 653 | -10/Mines | Entered Exiles 673 | -10/Exiles | Discovered new exit (range 15) 711 | -10/Exiles | Met 8R-AWN 728 | -10/Exiles | Met EX-HEX 802 | -10/Exiles | Met EX-DEC 825 | -10/Exiles | Visited The Gauntlet 965 | -10/Exiles | Learned location of Zion (-7) 1017 | -10/Exiles | Met EX-BIN 1040 | -10/Exiles | Aligned with FarCom system 1041 | -10/Exiles | Given EX-Vault access code 1090 | -10/Exiles | Opened EX-Vault 1106 | -10/Exiles | Found XL Autogun Array 1130 | -10/Exiles | Warned to stay clear of 0b10 Research branches 1242 | -10/Exiles | Discovered new exit (range 14) 1257 | -10/Exiles | Left Exiles lab with XL Autogun Array 1257 | -10/Exiles | Entered Mines 1394 | -9/Mines | Discovered new exit (range 9) 1449 | -9/Mines | Entered Materials 1449 | -8/Materials | Evolved 4 slots: Utility x2, Weapon x2 2014 | -8/Materials | Build established: Hauler-Skirmisher 2095 | -8/Materials | Discovered new exit (range 16) 2688 | -8/Materials | Discovered new exit (range 9) 2794 | -8/Materials | Identified exit to Garrison 2794 | -8/Materials | Entered Garrison 2821 | -8/Garrison | Triggered checkpoint 2846 | -8/Garrison | Garrison Relay disabled 2992 | -8/Garrison | Triggered checkpoint 3119 | -8/Garrison | Discovered new exit (range 8) 3140 | -8/Garrison | Installed Relay Interface Framework 3184 | -8/Garrison | Triggered checkpoint 3224 | -8/Garrison | Garrison Relay disabled 3279 | -8/Garrison | Self-destructed Last Messages --------------- 03192_ Destroyed Particle Gun. 03197_ G-47 Trooper destroyed. 03210_ Acquired 60 matter. 03211_ Acquired 47 matter. 03217_ Acquired 58 matter. 03224_ Garrison Relay disabled. 03224_ Relay Coupler [Behemoth] tumbles out of relay unit. 03224_ Relay Coupler [NC] tumbles out of relay unit. 03224_ Relay Coupler [Sentry] tumbles out of relay unit. 03227_ Dropped Hcp. Storage Unit. 03228_ Dropped Wheel. 03228_ Acquired Relay Coupler [Sentry]. 03231_ Acquired Relay Coupler [NC]. 03235_ Dropped Gauss Rifle. 03236_ Acquired Relay Coupler [Behemoth]. 03254_ G-47 Trooper destroyed. 03255_ Acquired 52 matter. 03276_ Dropped Hcp. Matter Pod. 03277_ Extracted 141 matter. 03278_ Acquired Hcp. Matter Pod. Map ----- +----------------------------------------------------+ | ???????## ## #######??????????????????????? | | ????????# ####????????????????????????????? | | ????????# ######??????????????????????????????? | | ######### #####################????????????????? | | #????????????????? | | #????????????????? | | #????????????????? | | ############################# #????????????????? | | ????????????????????????????# #????????????????? | | ????????????????????????????# #????????????????? | | ????????????????????????????# #????????????????? | | ??????????????????????##????# #????????????????? | | ??????????????????????? ?### ##g?g????????????? | | ????????????????????????# # # #""""######?????? | | ????????????????????????# ????? | | ????????????????????????# ????? | | ????????????????????????## ## ????? | | ?????????????????????????# #[ # ## g#?????? | | ?????????????????????????#### # ## g #?????? | | ??????????????????????????# b"g????? | | ??????????????????????????# *[ "g????? | | ??????????????????????????# "g????? | | ??????????????????????????# "?????? | | ??????????????????????????### ## ## #?????? | | ??????????????????########### ## #??? ??????? | | ??????????????????# @ ?????? | | ??????????????????# ?????? | | ??????????????????# ######## #?????? | | ??????????????????# #?????Y## ##""""## ##?????? | | ??????????????????# ##### #?? #???gg?????Y?????? | | ??????????????????# =+ #?? #????????????????? | | ??????????????????# ##### # #????????????????? | | ????????????#####?# ^#???????? #????????????????? | | ????????????# #?# #???????? #????????????????? | | ??????####### ### ######### #????????????????? | | ??????# = [ #????????????????? | | ??????# ! = #????????????????? | | ??????####### !### ############????????????????? | | ????????????# [ #?# #???????????????????????????? | | ???????????#""!="## #???????????????????????????? | | ???????????######## #???????????????????????????? | | ??????????????????# #???????????????????????????? | | ??????????????????# #???????????????????????????? | | ??????????????????# #???????????????????????????? | | ??????????????????# #???????????????????????????? | | ??????????????????# #???????????????????????????? | | ??????????????????# #???????????????????????????? | | ?????????########## #???????????????????????????? | | ?????????# #???????????????????????????? | | ?????????# #???????????????????????????? | +----------------------------------------------------+ Best States ------------- Heat Dissipation 39 Energy Generation 14 Energy Capacity 250 Matter Stores 300 Matter Capacity 300 Sight Range 16 Terrain Scan Density 10 Armor Coverage 150 Utility Shielding 66 Weapon Shielding 66 Evasion (%) 40 Targeting Accuracy 8 Item Schematics ----------------- Grenade Launcher | -10/Materials | Hacked Weapon Shielding | -8/Materials | Hacked Arm. Wheel | -8/Materials | Hacked Robot Schematics ------------------ None Fabricated ------------ Nothing Alien Tech Used ----------------- None Achievements -------------- None Challenges ------------ None Game ------ Seed GuidedTransmissionLance Manual? 0 Play Time 00:57:24 Cumulative 112.9 hours Start 2021.07.23 @ 17:32:57 End 2021.11.16 @ 18:57:42 Sessions 13 Manual Loads 0 Difficulty Rogue Special Mode None Game No. 30 Rogue 30 Adventurer 0 Explorer 0 Win Type - Total 0 Types 0/0/0/0/0/0/0/0/0 Lore% 37 Gallery% 57 Achievement% 42 Wizard Run 0 Options --------- ASCII 0 Keyboard 1 Movement Numpad Keybinds 0 Fullscreen 1 Font 18/SmallcapsGlow Map View 76x50 Tactical HUD 1 Map Filters NONE Filters NONE Steam 1 RUN: 1cce229f-d9ee-4526-9252-9cee86e8c8cc